fUSD/lending_fUSD_20240714
["ID","MTS","AMOUNT","RATE_DAILY","PERIOD"]
[332084397,1720953060418,-567.08,0.00013972,2]
[332084399,1720953060429,-500.0,0.00013972,2]
[332084401,1720953060438,-500.0,0.00013972,2]
[332084403,1720953060448,-569.09331128,0.00013972,2]
[332084405,1720953060459,-514.02,0.00013972,2]
[332084407,1720953060467,-500.0,0.00013972,2]
[332084409,1720953060477,-500.0,0.00013972,2]
[332084411,1720953060489,-500.0,0.00013972,2]
[332084413,1720953060500,-1021.83,0.00013972,2]
[332084415,1720953060509,-500.0,0.00013972,2]
[332084417,1720953060519,-500.0,0.00013972,2]
[332084419,1720953060530,-553.48,0.00013972,2]
[332084421,1720953060539,-500.0,0.00013972,2]
[332084423,1720953060548,-722.88,0.00013972,2]
[332084425,1720953060557,-500.0,0.00013972,2]
[332084427,1720953060567,-821.75,0.00013972,2]
[332084429,1720953060576,-721.24,0.00013972,2]
[332084431,1720953060585,-734.99,0.00013972,2]
[332084433,1720953060595,-500.0,0.00013972,2]
[332084435,1720953060604,-500.0,0.00013972,2]
[332084437,1720953060614,-684.45,0.00013972,2]
[332084439,1720953060623,-500.0,0.00013972,2]
[332084441,1720953060632,-500.0,0.00013972,2]
[332084443,1720953060641,-500.0,0.00013972,2]
[332084445,1720953060650,-500.0,0.00013972,2]
[332084447,1720953060659,-500.0,0.00013972,2]
[332084449,1720953060668,-500.0,0.00013972,2]
[332084451,1720953060677,-659.11,0.00013972,2]
[332084452,1720953060687,-788.08,0.00013972,2]
[332084455,1720953060697,-652.62,0.00013972,2]
[332084457,1720953060707,-963.07,0.00013972,2]
[332084459,1720953060718,-559.2,0.00013972,2]
[332084461,1720953060729,-500.0,0.00013972,2]
[332084463,1720953060740,-586.93,0.00013972,2]
[332084465,1720953060750,-1045.12,0.00013972,2]
[332084467,1720953060759,-500.0,0.00013972,2]
[332084469,1720953060768,-564.05,0.00013972,2]
[332084471,1720953060777,-813.9,0.00013972,2]
[332084473,1720953060787,-500.0,0.00013972,2]
[332084475,1720953060796,-500.0,0.00013972,2]
[332084477,1720953060805,-851.27,0.00013972,2]
[332084479,1720953060815,-552.78,0.00013972,2]
[332084481,1720953060824,-967.32,0.00013972,2]
[332084483,1720953060834,-1237.64,0.00013972,2]
[332084485,1720953060843,-500.0,0.00013972,2]
[332084487,1720953060853,-500.0,0.00013972,2]
[332084489,1720953060862,-661.8,0.00013972,2]
[332084491,1720953060872,-721.93,0.00013972,2]
[332084493,1720953060881,-650.84,0.00013972,2]
[332084495,1720953060890,-500.0,0.00013972,2]
[332084497,1720953060899,-500.0,0.00013972,2]
[332084499,1720953060909,-500.0,0.00013972,2]
[332084501,1720953060918,-542.23,0.00013972,2]
[332084503,1720953060927,-630.42,0.00013972,2]
[332084505,1720953060937,-500.0,0.00013972,2]
[332084507,1720953060946,-500.0,0.00013972,2]
[332084509,1720953060956,-668.0,0.00013972,2]
[332084511,1720953060965,-500.0,0.00013972,2]
[332084513,1720953060975,-500.0,0.00013972,2]
[332084515,1720953060984,-500.0,0.00013972,2]
[332084517,1720953060994,-500.0,0.00013972,2]
[332084519,1720953061004,-668.13,0.00013972,2]
[332084521,1720953061014,-500.0,0.00013972,2]
[332084523,1720953061024,-926.76,0.00013972,2]
[332084525,1720953061033,-500.0,0.00013972,2]
[332084526,1720953061043,-818.24,0.00013972,2]
[332084528,1720953061052,-500.0,0.00013972,2]
[332084530,1720953061061,-500.0,0.00013972,2]
[332084532,1720953061071,-500.0,0.00013972,2]
[332084534,1720953061080,-500.0,0.00013972,2]
[332084536,1720953061090,-538.74622262,0.00013972,2]
[332084538,1720953061099,-500.0,0.00013972,2]
[332084540,1720953061108,-875.29,0.00013972,2]
[332084542,1720953061117,-571.38,0.00013972,2]
[332084544,1720953061126,-500.0,0.00013972,2]
[332084546,1720953061135,-500.0,0.00013972,2]
[332084548,1720953061145,-4346.32,0.00013972,2]
[332084550,1720953061155,-500.0,0.00013972,2]
[332084552,1720953061164,-730.47,0.00013972,2]
[332084554,1720953061173,-500.0,0.00013972,2]
[332084556,1720953061183,-500.0,0.00013972,2]
[332084558,1720953061192,-793.29,0.00013972,2]
[332084560,1720953061202,-956.15,0.00013972,2]
[332084562,1720953061211,-513.3,0.00013972,2]
[332084564,1720953061220,-500.0,0.00013972,2]
[332084566,1720953061229,-500.0,0.00013972,2]
[332084568,1720953061238,-500.0,0.00013972,2]
[332084570,1720953061247,-500.0,0.00013972,2]
[332084572,1720953061257,-500.0,0.00013972,2]
[332084574,1720953061266,-500.0,0.00013972,2]
[332084576,1720953061275,-556.02,0.00013972,2]
[332084578,1720953061286,-978.75,0.00013972,2]
[332084580,1720953061298,-636.44,0.00013972,2]
[332084582,1720953061307,-500.0,0.00013972,2]
[332084584,1720953061316,-813.91,0.00013972,2]
[332084586,1720953061327,-2000.42,0.00013972,2]
[332084588,1720953061336,-532.91,0.00013972,2]
[332084589,1720953061348,-500.0,0.00013972,2]
[332084590,1720953061359,-759.7,0.00013972,2]
[332084591,1720953061370,-571.84,0.00013972,2]
[332084592,1720953061379,-813.67,0.00013972,2]
[332084593,1720953061390,-500.0,0.00013972,2]
[332084595,1720953061401,-500.0,0.00013972,2]
[332084597,1720953061410,-500.0,0.00013972,2]
[332084599,1720953061422,-1769.97,0.00013972,2]
[332084601,1720953061431,-2233.7,0.00013972,2]
[332084603,1720953061441,-563.79,0.00013972,2]
[332084606,1720953061452,-660.57,0.00013972,2]
[332084608,1720953061463,-500.0,0.00013972,2]
[332084610,1720953061473,-500.0,0.00013972,2]
[332084612,1720953061483,-597.19,0.00013972,2]
[332084614,1720953061494,-1284.3,0.00013972,2]
[332084616,1720953061503,-552.52,0.00013972,2]
[332084618,1720953061515,-500.0,0.00013972,2]
[332084621,1720953061527,-500.0,0.00013972,2]
[332084623,1720953061537,-1017.39,0.00013972,2]
[332084625,1720953061547,-500.0,0.00013972,2]
[332084627,1720953061558,-1063.32,0.00013972,2]
[332084629,1720953061569,-500.0,0.00013972,2]
[332084631,1720953061579,-500.0,0.00013972,2]
[332084633,1720953061590,-500.0,0.00013972,2]
[332084635,1720953061600,-532.45,0.00013972,2]
[332084637,1720953061609,-500.0,0.00013972,2]
[332084639,1720953061621,-810.42,0.00013972,2]
[332084641,1720953061631,-734.34,0.00013972,2]
[332084643,1720953061641,-500.0,0.00013972,2]
[332084645,1720953061651,-500.0,0.00013972,2]
[332084647,1720953061660,-500.0,0.00013972,2]
[332084649,1720953061670,-544.08,0.00013972,2]
[332084651,1720953061681,-1042.25,0.00013972,2]
[332084653,1720953061691,-767.04,0.00013972,2]
[332084654,1720953061703,-577.6,0.00013972,2]
[332084656,1720953061715,-500.0,0.00013972,2]
[332084658,1720953061725,-500.0,0.00013972,2]
[332084660,1720953061735,-500.0,0.00013972,2]
[332084663,1720953061747,-500.0,0.00013972,2]
[332084664,1720953061756,-500.0,0.00013972,2]
[332084667,1720953061767,-500.0,0.00013972,2]
[332084669,1720953061778,-890.25,0.00013972,2]
[332084670,1720953061787,-500.0,0.00013972,2]
[332084672,1720953061796,-500.0,0.00013972,2]
[332084674,1720953061806,-529.03,0.00013972,2]
[332084676,1720953061815,-500.0,0.00013972,2]
[332084678,1720953061825,-786.78,0.00013972,2]
[332084680,1720953061834,-991.4,0.00013972,2]
[332084682,1720953061843,-514.71,0.00013972,2]
[332084684,1720953061853,-500.0,0.00013972,2]
[332084686,1720953061862,-616.84,0.00013972,2]
[332084688,1720953061871,-500.0,0.00013972,2]
[332084690,1720953061881,-628.72,0.00013972,2]
[332084692,1720953061890,-785.58,0.00013972,2]
[332084694,1720953061900,-3926.71,0.00013972,2]
[332084696,1720953061909,-2899.14,0.00013972,2]
[332084698,1720953061919,-824.32,0.00013972,2]
[332084699,1720953061928,-819.62,0.00013972,2]
[332084701,1720953061937,-516.57,0.00013972,2]
[332084703,1720953061948,-922.21,0.00013972,2]
[332084705,1720953061958,-500.0,0.00013972,2]
[332084707,1720953061968,-773.04,0.00013972,2]
[332084709,1720953061977,-938.7,0.00013972,2]
[332084711,1720953061987,-655.89,0.00013972,2]
[332084713,1720953061996,-841.33,0.00013972,2]
[332084715,1720953062005,-500.0,0.00013972,2]
[332084717,1720953062015,-593.56,0.00013972,2]
[332084719,1720953062025,-599.08,0.00013972,2]
[332084721,1720953062035,-500.0,0.00013972,2]
[332084723,1720953062044,-524.43,0.00013972,2]
[332084725,1720953062054,-995.19,0.00013972,2]
[332084727,1720953062064,-799.31,0.00013972,2]
[332084729,1720953062074,-500.0,0.00013972,2]
[332084731,1720953062083,-725.52,0.00013972,2]
[332084733,1720953062093,-500.0,0.00013972,2]
[332084735,1720953062103,-500.0,0.00013972,2]
[332084737,1720953062114,-500.0,0.00013972,2]
[332084739,1720953062123,-500.0,0.00013972,2]
[332084741,1720953062133,-2000.0,0.00013973,3]
[332084743,1720953062143,-150.0,0.00013984,2]
[332084744,1720953062153,-151.0,0.0001399,2]
[332084745,1720953062162,-151.0,0.0001399,2]
[332084746,1720953062172,-150.0,0.00013996,2]
[332084747,1720953062183,-2350.1200673,0.00013998,2]
[332084748,1720953062193,-2210.0201606,0.00013998,2]
[332084749,1720953062203,-15735.6611467,0.00013998,2]
[332084750,1720953062213,-150.01,0.00013999,2]
[332084751,1720953062223,-5933.21207966,0.00013999,2]
[332084752,1720953062235,-400.0,0.00013999,2]
[332084753,1720953062244,-158.64569138,0.00013999,2]
[332084754,1720953062255,-354629.7861296,0.00014,2]
[332084755,1720953062265,-1197132.288861,0.00014,2]
[332084785,1720953062656,-551.00596075,0.00013698,2]
[332084787,1720953062665,-1089042.01347422,0.00014,2]
[332084789,1720953062676,-573.69,0.00014,2]
[332084791,1720953062687,-4891.67577548,0.00014,2]
[332084794,1720953062698,-726.08904086,0.00014,2]
[332084796,1720953062710,-344.17843278,0.00014,2]
[332084825,1720953063106,-775.91,0.00013698,2]
[332084826,1720953063118,-500.0,0.00013698,2]
[332084827,1720953063128,-775.91,0.00013753,2]
[332084828,1720953063138,-26.65176684,0.00013753,2]
[332084830,1720953063149,-473.34823316,0.00013753,2]
[332084831,1720953063158,-49.69176684,0.00013808,2]
[332084833,1720953063170,-579.62038,0.00013808,2]
[332084835,1720953063182,-146.59785316,0.00013808,2]
[332084837,1720953063192,-500.0,0.00013808,2]
[332084839,1720953063201,-775.91,0.00013863,2]
[332084841,1720953063211,-182.39185847,0.00013863,2]
[332084843,1720953063221,-775.91,0.00013917,2]
[332084845,1720953063230,-775.91,0.00013972,2]
[332084847,1720953063240,-30357.23282161,0.00014,2]
[332084849,1720953063251,-674.77624646,0.00014,2]
[332084851,1720953063262,-257.83730671,0.00014,2]
[332084854,1720953063282,-2886.42296253,0.00014,2]
[332084856,1720953063298,-1440.58377906,0.00014,2]
[332084858,1720953063310,-489.17891229,0.00014,2]
[332084869,1720953063410,-1358.30303484,0.00014,2]
[332084872,1720953063422,-950.28233802,0.00014,2]
[332084874,1720953063434,-427.8153428,0.00014,2]
[332084876,1720953063445,-3814.17533803,0.00014,2]
[332084878,1720953063457,-11553.6,0.00014,2]
[332084915,1720953063895,-977.79543901,0.00014,2]
[332084919,1720953063919,-341.92707551,0.00014,2]
[332085011,1720953064960,-4023.18759903,0.00014,2]
[332085014,1720953064972,-459172.91872877,0.00014,2]
[332085016,1720953064983,-884.67554204,0.00014,2]
[332085046,1720953065455,-472727.18755178,0.00014,2]
[332085047,1720953065466,-611.7207303,0.00014,2]
[332085049,1720953065477,-256.59996051,0.00014,2]
[332085051,1720953065489,-56408.95060526,0.00014,2]
[332085053,1720953065499,-364.0900299,0.00014,2]
[332085055,1720953065510,-403.53386833,0.00014,2]
[332085057,1720953065521,-940.63593061,0.00014,2]
[332085062,1720953065559,-5857.8,0.00014,2]
[332085064,1720953065571,-5098.07588448,0.00014,2]
[332085066,1720953065582,-1869.3662922,0.00014,2]
[332085068,1720953065593,-702.02781617,0.00014,2]
[332085071,1720953065608,-555.06035073,0.00014,2]
[332085631,1720953171722,176.91,9.813e-05,2]
[332085646,1720953417763,-300.0,0.00011097,2]
[332085647,1720953417786,-300.0,0.00011097,2]
[332085648,1720953417807,-254.10536199,0.00011098,2]
[332085649,1720953417828,-358.85703166,0.00011098,2]
[332085650,1720953417847,-440.80611874,0.00011098,2]
[332085651,1720953417867,-155.0,0.00011098,2]
[332085652,1720953417886,-263.65679247,0.00011098,2]
[332085653,1720953417907,-316.59942391,0.00011098,2]
[332085654,1720953417926,-155.0,0.00011098,2]
[332085655,1720953417946,-1538.26608865,0.00011199,2]
[332085656,1720953417968,-251.0545621,0.00012117,2]
[332085657,1720953417988,-420.0,0.00012193,2]
[332085658,1720953418009,-23900.0,0.00012219,2]
[332085659,1720953418028,-171.9,0.00012266,2]
[332085660,1720953418047,-250.0,0.00012324,2]
[332085661,1720953418069,-344.4,0.00012332,2]
[332085662,1720953418091,-1000.0,0.00012999,2]
[332085663,1720953418112,-2780.35462048,0.00012999,2]
[332085667,1720953485213,800.0,0.00026877,120]
[332085669,1720953557912,337.72,0.00010293,2]
[332085673,1720953787877,800.0,0.00026877,120]
[332085674,1720953847901,800.0,0.00026877,120]
[332085689,1720954087773,320.83,9.771e-05,2]
[332085691,1720954142988,2366.72499975,9.771e-05,2]
[332085725,1720954232203,-155.0,0.00011098,2]
[332085726,1720954232212,-329.72314815,0.00011098,2]
[332085727,1720954232222,-1500.0,0.00011098,2]
[332085728,1720954232231,-158.64569138,0.00011098,2]
[332085729,1720954232240,-424.96693983,0.00011098,2]
[332085730,1720954232250,-400.0,0.00011098,2]
[332085731,1720954232259,-296.45513215,0.00011098,2]
[332085732,1720954232273,-9724.53244605,0.00011098,2]
[332085733,1720954232283,-155.0,0.00011197,2]
[332085734,1720954232293,-5120.46755395,0.00011199,2]
[332085735,1720954232306,-3648.66014671,0.00011199,2]
[332085736,1720954232428,-505.95034743,0.00011199,2]
[332085737,1720954232440,-354.93008018,0.00011199,2]
[332085738,1720954232451,-755.89,0.00011643,2]
[332085739,1720954232462,-1876.88,0.00011771,2]
[332085740,1720954232472,-170.2,0.00011771,2]
[332085741,1720954232481,-600.0,0.00011776,2]
[332085742,1720954232491,-2587.65637691,0.00011843,2]
[332085743,1720954232508,-3175.13914745,0.00011843,2]
[332085744,1720954232520,-2535.84833948,0.00011957,2]
[332085745,1720954232548,-2623.158139,0.00011957,2]
[332085746,1720954232560,-2764.34352152,0.00011957,2]
[332085747,1720954232571,-211.12,0.00011985,2]
[332085748,1720954232582,-1348.31,0.0001202,2]
[332085749,1720954232594,-250.0,0.0001202,2]
[332085750,1720954232606,-320.83,0.00012034,2]
[332085751,1720954232617,-1226.68,0.00012055,2]
[332085752,1720954232627,-448.59,0.00012202,2]
[332085753,1720954232638,-150.0,0.0001221,2]
[332085754,1720954232653,-250.0,0.00012211,2]
[332085755,1720954232663,-1955.44,0.00012273,2]
[332085756,1720954232672,-320.01,0.00012289,2]
[332085757,1720954232683,-499.99,0.00012289,2]
[332085758,1720954232692,-1555.85,0.00012302,2]
[332085759,1720954232702,-760.23647848,0.00012305,2]
[332085760,1720954232715,-301.25,0.00012305,2]
[332085761,1720954232738,-2121.37763752,0.00012305,2]
[332085762,1720954232749,-466.63551131,0.00012305,2]
[332085763,1720954232759,-3187.28487987,0.00012305,2]
[332085775,1720954238184,-575.48925,0.00012305,2]
[332085777,1720954238196,-324.92542477,0.00012305,2]
[332085780,1720954238329,-614.32,0.00012305,2]
[332085781,1720954238394,-8118.75081805,0.00012305,2]
[332085782,1720954238403,-400.0,0.00012314,2]
[332085783,1720954238413,-999.99,0.00012314,2]
[332085784,1720954238423,-370.2,0.00012314,2]
[332085785,1720954238432,-150.99,0.00012314,2]
[332085786,1720954238442,-150.99,0.00012557,2]
[332085787,1720954238451,-7500.0,0.00012899,2]
[332085788,1720954238460,-1000.0,0.00012899,2]
[332085789,1720954238469,-2096.343,0.00012899,2]
[332085790,1720954238479,-38820.3666113,0.00012999,2]
[332085791,1720954238496,-597.4,0.00012999,2]
[332085792,1720954238664,-1410.49264632,0.00012999,2]
[332085817,1720954240192,-437.61,0.00012999,2]
[332085826,1720954240270,-14732.19448898,0.00012999,2]
[332085828,1720954240281,-9096.64373114,0.00012999,2]
[332085830,1720954240292,-8947.21879473,0.00012999,2]
[332085832,1720954240304,-8943.78386462,0.00012999,2]
[332085834,1720954240315,-9077.54866152,0.00012999,2]
[332085836,1720954240325,-8943.84023489,0.00012999,2]
[332085850,1720954240462,-3364.54855239,0.00012999,2]
[332085852,1720954240475,-768.95049403,0.00012999,2]
[332085853,1720954240488,-449.03088406,0.00012999,2]
[332085854,1720954240559,-1465.79294276,0.00012999,2]
[332085855,1720954240606,-1487.61892134,0.00012999,2]
[332085856,1720954240618,-5872.9686168,0.00012999,2]
[332085857,1720954240630,-58711.5819714,0.00012999,2]
[332085858,1720954240642,-2398.16110906,0.00012999,2]
[332086117,1720954243505,-68404.56344418,0.00012999,2]
[332086119,1720954243515,-1250.0,0.00013,2]
[332086121,1720954243524,-157.77,0.00013029,2]
[332086123,1720954243534,-157.77,0.00013033,2]
[332086125,1720954243543,-157.77,0.00013036,2]
[332086127,1720954243553,-157.77,0.0001304,2]
[332086129,1720954243563,-157.77,0.00013043,2]
[332086131,1720954243572,-157.77,0.00013047,2]
[332086133,1720954243582,-157.77,0.00013051,2]
[332086135,1720954243591,-157.77,0.00013054,2]
[332086137,1720954243599,-157.77,0.00013058,2]
[332086139,1720954243609,-157.77,0.00013062,2]
[332086141,1720954243618,-157.77,0.00013065,2]
[332086143,1720954243629,-157.77,0.00013069,2]
[332086145,1720954243639,-157.77,0.00013072,2]
[332086147,1720954243650,-157.77,0.00013076,2]
[332086149,1720954243661,-157.77,0.0001308,2]
[332086151,1720954243670,-157.77,0.00013083,2]
[332086152,1720954243679,-157.77,0.00013087,2]
[332086154,1720954243689,-157.77,0.0001309,2]
[332086156,1720954243699,-157.77,0.00013094,2]
[332086158,1720954243708,-1322.77749777,0.00013128,2]
[332086160,1720954243718,-6649.0,0.00013158,2]
[332086162,1720954243730,-1077.62733686,0.00013182,2]
[332086165,1720954243740,-600.0,0.00013248,2]
[332086167,1720954243750,-150.0,0.00013296,2]
[332086168,1720954243760,-5176.095,0.0001349,2]
[332086170,1720954243771,-1447.8034,0.0001349,2]
[332086172,1720954243781,-160.58690581,0.00013598,2]
[332086174,1720954243790,-1000.0,0.00013598,2]
[332086176,1720954243800,-500.0,0.00013698,2]
[332086178,1720954243810,-500.0,0.00013698,2]
[332086180,1720954243819,-500.0,0.00013698,2]
[332086182,1720954243830,-500.0,0.00013698,2]
[332086184,1720954243843,-500.0,0.00013698,2]
[332086186,1720954243853,-500.0,0.00013698,2]
[332086188,1720954243863,-500.0,0.00013698,2]
[332086190,1720954243873,-500.0,0.00013698,2]
[332086192,1720954243883,-500.0,0.00013698,2]
[332086194,1720954243892,-500.0,0.00013698,2]
[332086196,1720954243902,-500.0,0.00013698,2]
[332086199,1720954243912,-500.0,0.00013698,2]
[332086201,1720954243922,-500.0,0.00013698,2]
[332086203,1720954243932,-500.0,0.00013698,2]
[332086205,1720954243941,-500.0,0.00013698,2]
[332086206,1720954243951,-301.42293593,0.00013698,2]
[332086208,1720954243961,-500.0,0.00013698,2]
[332086210,1720954243972,-500.0,0.00013698,2]
[332086212,1720954243982,-507.9,0.00013698,2]
[332086214,1720954243993,-500.0,0.00013698,2]
[332086216,1720954244002,-500.0,0.00013698,2]
[332086218,1720954244011,-500.0,0.00013698,2]
[332086220,1720954244020,-500.0,0.00013698,2]
[332086222,1720954244029,-500.0,0.00013698,2]
[332086224,1720954244039,-500.0,0.00013698,2]
[332086226,1720954244048,-500.0,0.00013698,2]
[332086228,1720954244058,-500.0,0.00013698,2]
[332086229,1720954244067,-500.0,0.00013698,2]
[332086231,1720954244076,-500.0,0.00013698,2]
[332086233,1720954244085,-500.0,0.00013698,2]
[332086235,1720954244095,-500.0,0.00013698,2]
[332086237,1720954244105,-500.0,0.00013698,2]
[332086240,1720954244127,-500.0,0.00013698,2]
[332086242,1720954244138,-500.0,0.00013698,2]
[332086244,1720954244148,-500.0,0.00013698,2]
[332086246,1720954244157,-389.36702421,0.00013698,2]
[332086248,1720954244167,-500.0,0.00013698,2]
[332086250,1720954244177,-500.0,0.00013698,2]
[332086252,1720954244187,-500.0,0.00013698,2]
[332086254,1720954244196,-500.0,0.00013698,2]
[332086256,1720954244206,-500.0,0.00013698,2]
[332086258,1720954244218,-500.0,0.00013698,2]
[332086260,1720954244227,-500.0,0.00013698,2]
[332086262,1720954244237,-635.19,0.00013698,2]
[332086264,1720954244247,-500.0,0.00013698,2]
[332086266,1720954244257,-500.0,0.00013698,2]
[332086268,1720954244266,-687.3,0.00013698,2]
[332086270,1720954244276,-500.0,0.00013698,2]
[332086272,1720954244285,-500.0,0.00013698,2]
[332086274,1720954244303,-500.0,0.00013698,2]
[332086276,1720954244322,-500.0,0.00013698,2]
[332086278,1720954244332,-367.04154238,0.00013698,2]
[332086280,1720954244342,-500.0,0.00013698,2]
[332086283,1720954244359,-500.0,0.00013698,2]
[332086285,1720954244372,-500.0,0.00013698,2]
[332086287,1720954244382,-500.0,0.00013698,2]
[332086289,1720954244392,-500.0,0.00013698,2]
[332086291,1720954244403,-500.0,0.00013698,2]
[332086293,1720954244414,-500.0,0.00013698,2]
[332086295,1720954244424,-500.0,0.00013698,2]
[332086298,1720954244434,-500.0,0.00013698,2]
[332086300,1720954244444,-500.0,0.00013698,2]
[332086302,1720954244455,-717.86,0.00013698,2]
[332086304,1720954244464,-604.75,0.00013698,2]
[332086306,1720954244474,-540.93,0.00013698,2]
[332086308,1720954244484,-654.97,0.00013698,2]
[332086310,1720954244493,-785.99,0.00013698,2]
[332086312,1720954244503,-500.0,0.00013698,2]
[332086314,1720954244513,-500.0,0.00013698,2]
[332086316,1720954244523,-500.0,0.00013698,2]
[332086318,1720954244533,-500.0,0.00013698,2]
[332086320,1720954244543,-500.0,0.00013698,2]
[332086322,1720954244553,-500.0,0.00013698,2]
[332086324,1720954244563,-500.0,0.00013698,2]
[332086327,1720954244573,-500.0,0.00013698,2]
[332086329,1720954244585,-500.0,0.00013698,2]
[332086331,1720954244595,-500.0,0.00013698,2]
[332086333,1720954244605,-500.0,0.00013698,2]
[332086335,1720954244615,-500.0,0.00013698,2]
[332086337,1720954244624,-500.0,0.00013698,2]
[332086338,1720954244634,-500.0,0.00013698,2]
[332086341,1720954244645,-500.0,0.00013698,2]
[332086342,1720954244657,-500.0,0.00013698,2]
[332086345,1720954244667,-500.0,0.00013698,2]
[332086347,1720954244677,-638.45,0.00013698,2]
[332086349,1720954244689,-542.29,0.00013698,2]
[332086351,1720954244699,-532.31,0.00013698,2]
[332086353,1720954244709,-500.0,0.00013698,2]
[332086355,1720954244721,-165.76559398,0.00013698,2]
[332086357,1720954244732,-500.0,0.00013698,2]
[332086359,1720954244743,-500.0,0.00013698,2]
[332086361,1720954244754,-509.37,0.00013698,2]
[332086363,1720954244764,-500.0,0.00013698,2]
[332086365,1720954244774,-500.0,0.00013698,2]
[332086367,1720954244786,-500.0,0.00013698,2]
[332086369,1720954244795,-500.0,0.00013698,2]
[332086371,1720954244806,-500.0,0.00013698,2]
[332086373,1720954244815,-741.15,0.00013698,2]
[332086375,1720954244825,-500.0,0.00013698,2]
[332086377,1720954244835,-567.62,0.00013698,2]
[332086380,1720954244845,-500.0,0.00013698,2]
[332086382,1720954244855,-500.0,0.00013698,2]
[332086384,1720954244867,-500.0,0.00013698,2]
[332086386,1720954244877,-549.13,0.00013698,2]
[332086388,1720954244888,-757.51,0.00013698,2]
[332086390,1720954244899,-500.0,0.00013698,2]
[332086392,1720954244910,-500.0,0.00013698,2]
[332086394,1720954244921,-500.0,0.00013698,2]
[332086396,1720954244931,-500.0,0.00013698,2]
[332086398,1720954244941,-500.0,0.00013698,2]
[332086400,1720954244951,-500.0,0.00013698,2]
[332086403,1720954244961,-500.0,0.00013698,2]
[332086405,1720954244972,-500.0,0.00013698,2]
[332086407,1720954244981,-330.53948828,0.00013698,2]
[332086409,1720954244993,-500.0,0.00013698,2]
[332086411,1720954245003,-500.0,0.00013698,2]
[332086413,1720954245012,-581.28,0.00013698,2]
[332086415,1720954245023,-463.71167911,0.00013698,2]
[332086417,1720954245032,-500.0,0.00013698,2]
[332086419,1720954245043,-500.0,0.00013698,2]
[332086421,1720954245052,-275.85,0.00013698,2]
[332086423,1720954245061,-500.0,0.00013698,2]
[332086425,1720954245071,-500.0,0.00013698,2]
[332086427,1720954245082,-500.0,0.00013698,2]
[332086429,1720954245092,-500.0,0.00013698,2]
[332086431,1720954245101,-500.0,0.00013698,2]
[332086433,1720954245111,-500.0,0.00013698,2]
[332086435,1720954245120,-500.0,0.00013698,2]
[332086437,1720954245130,-500.0,0.00013698,2]
[332086439,1720954245140,-500.0,0.00013698,2]
[332086442,1720954245150,-589.19,0.00013698,2]
[332086444,1720954245159,-500.0,0.00013698,2]
[332086445,1720954245168,-500.0,0.00013698,2]
[332086448,1720954245178,-500.0,0.00013698,2]
[332086450,1720954245187,-500.0,0.00013698,2]
[332086452,1720954245196,-500.0,0.00013698,2]
[332086454,1720954245206,-537.94,0.00013698,2]
[332086456,1720954245215,-500.0,0.00013698,2]
[332086458,1720954245224,-500.0,0.00013698,2]
[332086460,1720954245234,-500.0,0.00013698,2]